Workbook

Sheet Dateneingabe
B6: Anzahl produktiver Sauen | D6: 150 | F6: im Betrieb
B8: Beleggruppengröße | D8: 20
B10: Anzahl Würfe | D10: 2.3 | F10: je Sau und Jahr
B12: Anzahl lebend geborener Ferkel | D12: 13.5 | F12: je Sau und Wurf
B14: Wochenrhythmus
B16: Bundesland des Betriebes
B18: Lohnansatz für den Landwirt | D18: 20 | F18: in EUR je Stunde
B20: Ferkelpreis | D20: 65 | F20: in EUR je Ferkel
B23: Hinweis:
B24: In den Ergebnissen werden die kalkulatorischen Mehrkosten je männliches Ferkel, Sau und für den Betrieb angegeben. Die Variationsrechnungen mit der Durchführung der Narkose durch den Landwirt dienen als Orientierung und basieren nicht auf einer Rechtsgrundlage. Das Gleiche gilt für die Lokalanästhesie mit Procain, die momentan für deutsche Ferkelerzeuger nicht zugelassen ist.

Sheet Ergebnisse
A11: Mehrkosten der alternativen Verfahren | E11: EUR je Ferkel (m) | G11: EUR je Sau | I11: EUR pro Jahr
B12: durchgeführt vom Veterinär
B14: Injektionsnarkose | E14: 6.9808 | G14: 108.3772 | I14: 16256.5824
B16: Isofluran mit 4 Ferkelschalen | E16: 3.625 | G16: 56.2778 | I16: 8441.669
B18: Isofluran mit 3 Ferkelschalen | E18: 3.525 | G18: 54.7252 | I18: 8208.7826
B20: Lokalanästhesie | E20: 1.9297 | G20: 29.9588 | I20: 4493.8243
A23: Mehrkosten der alternativen Verfahren | E23: EUR je Ferkel (m) | G23: EUR je Sau | I23: EUR pro Jahr
B24: in Variationsrechnungen
B26: Injektionsnarkose mit Nachkontrolle
B27: durch den Landwirt | E27: 3.6477 | G27: 56.6312 | I27: 8494.6852
B29: Isofluran mit 4 Ferkelschalen
B30: angewendet durch den Landwirt | E30: 1.4431 | G30: 22.4034 | I30: 3360.5174
B32: Isofluran mit 3 Ferkelschalen
B33: angewendet durch den Landwirt | E33: 1.8271 | G33: 28.3657 | I33: 4254.8535
B35: Lokalanästhesie
B36: angewendet durch den Landwirt | E36: 0.7328 | G36: 11.3764 | I36: 1706.4579
A38: Zusätzliche Arbeitszeit für den Landwirt | E38: min je Wurf | G38: h pro Jahr
B39: Injektionsnarkose | E39: 9.308582203 | G39: 53.52434767
C40: NK durch den Landwirt | E40: 17.19453485 | G40: 98.86857541
B42: Isofluran mit 4 Ferkelschalen | E42: 8.222413417 | G42: 47.27887715
C43: angewendet durch den Landwirt | E43: 17.6670593 | G43: 101.5855909
B45: Isofluran mit 3 Ferkelschalen | E45: 10.57723031 | G45: 60.8190743
C46: angewendet durch den Landwirt | E46: 17.22132353 | G46: 99.0226103
B48: Lokalanästhesie | E48: 7.223536084 | G48: 41.53533248
C49: angewendet durch den Landwirt | E49: 10.97207181 | G49: 63.08941292

Sheet data (hidden)
C1: Klein | D1: Klein | E1: Mittel | F1: Mittel | G1: Mittel | H1: Groß | K1: Eingabe
A2: Index | C2: 1 | D2: 2 | E2: 3 | F2: 4 | G2: 5 | H2: 6 | J2: Index | K2: =IF(K4<=C4,1,IF(K4<=D4,2,IF(K4<=E4,3,IF(K4<=F4,4,IF(AND(K3>=G3,K3<=H3),5,6))))) -> 3
A3: Anzahl Sauen | C3: 190 | D3: 280 | E3: 490 | F3: 648 | G3: 651 | H3: 1050 | K3: =Dateneingabe!$D$6 -> 150
A4: Beleggruppengröße | C4: 10 | D4: 18 | E4: 22 | F4: 33 | G4: 33 | H4: 70 | K4: =Dateneingabe!$D$8 -> 20
A5: Anzahl lebend geborener Ferkel | K5: =Dateneingabe!$D$12 -> 13.5
A6: Anzahl Würfe | K6: =Dateneingabe!$D$10 -> 2.3
A7: Wochenrhythmus | C7: 1 | D7: 1 | E7: 1 | F7: 1 | G7: 1 | H7: 1 | K7: =IF(data2!G19=0,1,IF(data2!G19>4,4,data2!G19)) -> 1
A8: Lohnansatz | K8: =Dateneingabe!$D$18 -> 20
A9: Ferkelpreis | K9: =Dateneingabe!$D$20 -> 65
A11: Max Anzahl Kastrationen am Tag
A12: Injektionsnarkose TA | B12: No. | C12: 60.58364419 | D12: 87.76406227 | E12: 119.1229099 | F12: 111.0088449 | G12: 123.7805839 | H12: 170.0105208 | I12: 1 | J12: =INDEX($C$12:$H$19,I12,$K$2) -> 119.1229099 | K12: =(($K$3*$K$6)/(52/$K$7))*(($K$5/2)) -> 44.78365385
A13: Injektionsnarkose TA | B13: No. | C13: 692.242623 | D13: 814.3387171 | E13: 402.2600643 | F13: 342.8797695 | G13: 370.5668192 | H13: 489.867374 | I13: 2 | J13: =INDEX($C$12:$H$19,I13,$K$2) -> 402.2600643 | K13: =(($K$3*$K$6)/(52/$K$7))*(($K$5/2)) -> 44.78365385
A14: IsofluranA TA | B14: No. | C14: 534.5665791 | D14: 455.0707409 | E14: 300.1700685 | F14: 531.9188682 | G14: 815.1209346 | H14: 631.9510121 | I14: 3 | J14: 300.1700685 | K14: 44.78365385
A15: IsofluranA LW | B15: No. | C15: 0 | D15: 0 | E15: 0 | F15: 0 | G15: 0 | H15: 0 | I15: 4 | J15: 0 | K15: 44.78365385
A16: IsofluranB TA | B16: No. | C16: 376.4136874 | D16: 304.9320514 | E16: 426.6947961 | F16: 438.6917217 | G16: 479.6212804 | H16: 566.0499966 | I16: 5 | J16: 426.6947961 | K16: 44.78365385
A17: IsofluranB LW | B17: No. | C17: 0 | D17: 0 | E17: 0 | F17: 0 | G17: 0 | H17: 0 | I17: 6 | J17: 0 | K17: 44.78365385
A18: Lokalanästhesie TA | B18: No. | C18: 713.6230769 | D18: 769.8954545 | E18: 756.2953125 | F18: 1004.711538 | G18: 1273.336364 | H18: 918.8920914 | I18: 7 | J18: 756.2953125 | K18: 44.78365385
A19: Lokalanästhesie LW | B19: No. | C19: 0 | D19: 0 | E19: 0 | F19: 0 | G19: 0 | H19: 0 | I19: 8 | J19: 0 | K19: 44.78365385
A21: Kosten Behandlung | L21: Zubehör
A22: Injektionsnarkose TA | B22: EUR | C22: 11.40218222 | D22: 8.061052218 | E22: 5.962818639 | F22: 6.645612635 | G22: 5.601509639 | H22: 4.175081036 | I22: =IF(K12<J12,1,IF(K12<J12*2,2,IF(K12<J12*3,3,4))) -> 1 | J22: =INDEX($C$22:$H$29,I12,$K$2) -> 5.962818639 | K22: =(($K$31*3.2)*I22)/(K12/I22)+J22+L22 -> 6.551279663 | L22: =20.5/($K$3*$K$6*$K$5*0.5) -> 0.008803005904
A23: Injektionsnarkose TA | B23: EUR | C23: 1.913421524 | D23: 1.656349248 | E23: 2.240314409 | F23: 2.807767928 | G23: 2.211956667 | H23: 1.755490393 | I23: =IF(K13<J13,1,IF(K13<J13*2,2,IF(K13<J13*3,3,4))) -> 1 | J23: =INDEX($C$22:$H$29,I13,$K$2) -> 2.240314409 | K23: =(($K$31*3.2)*I23)/(K13/I23)+J23+L23 -> 2.828775433 | L23: =20.5/($K$3*$K$6*$K$5*0.5) -> 0.008803005904
A24: IsofluranA TA | B24: EUR | C24: 1.376011066 | D24: 1.7895307 | E24: 2.396977298 | F24: 1.355202162 | G24: 0.9455362181 | H24: 1.202193387 | I24: 1 | J24: 2.396977298 | K24: =(($K$31*3.2)*I24)/(K14/I24)+J24+L24 -> 3.020321188 | L24: 0.04368587214
A25: IsofluranA LW | B25: EUR | C25: 0.1974862109 | D25: 0.4051305543 | E25: 0.2981671028 | F25: 0.1708110125 | G25: 0.1726447695 | H25: 0.2052806706 | I25: 4 | J25: 0.2981671028 | K25: =+J25+L25 -> 0.341852975 | L25: 0.04368587214
A26: IsofluranB TA | B26: EUR | C26: 2.072281847 | D26: 2.659105748 | E26: 1.965275425 | F26: 1.832678146 | G26: 1.694724276 | H26: 1.480875769 | I26: 1 | J26: 1.965275425 | K26: =(($K$31*3.2)*I26)/(K16/I26)+J26+L26 -> 2.774933444 | L26: 0.23
A27: IsofluranB LW | B27: EUR | C27: 0.3985913806 | D27: 0.5930717015 | E27: 0.4888102662 | F27: 0.3965899573 | G27: 0.3811878973 | H27: 0.3678998772 | I27: 4 | J27: 0.4888102662 | K27: =+J27+L27 -> 0.7188102662 | L27: 0.23
A28: Lokalanästhesie TA | B28: EUR | C28: 1.013868789 | D28: 1.141387605 | E28: 1.023483027 | F28: 0.806182638 | G28: 0.7499829125 | H28: 0.7346397902 | I28: 1 | J28: 1.023483027 | K28: =(($K$31*3.2)*I28)/(K18/I28)+J28 -> 1.603141046
A29: Lokalanästhesie LW | B29: EUR | C29: 0.1294904097 | D29: 0.3246813227 | E29: 0.1909477765 | F29: 0.1748224312 | G29: 0.2534574996 | H29: 0.04676465362 | I29: 4 | J29: 0.1909477765 | K29: =+J29 -> 0.1909477765
A31: Anfahrt | B31: km | K31: =INDEX(data2!A1:E16,data2!G1,5) -> 8.112251261
A33: Abschreibungen
A34: IsofluranA TA | B34: EUR | C34: 0.1450256221 | D34: 0.4179996617 | E34: 0.2287559829 | F34: 0.1788022278 | G34: 0.1737139197 | H34: 0.1145895439 | I34: 1 | J34: =INDEX($C$34:$H$37,I34,$K$2) -> 0.2287559829 | K34: =J34 -> 0.2287559829
A35: IsofluranA LW | B35: EUR | C35: 0.145025532 | D35: 0.417999585 | E35: 0.2287559829 | F35: 0.1788021757 | G35: 0.1737139197 | H35: 0.1145895439 | I35: 2 | J35: =INDEX($C$34:$H$37,I35,$K$2) -> 0.2287559829 | K35: =J35 -> 0.2287559829
A36: IsofluranB TA | B36: EUR | C36: 0.1634715586 | D36: 0.4711653423 | E36: 0.2578516084 | F36: 0.2015442273 | G36: 0.1958087086 | H36: 0.1291642642 | I36: 3 | J36: 0.2578516084 | K36: 0.2578516084
A37: IsofluranB LW | B37: EUR | C37: 0.1634714439 | D37: 0.4711652353 | E37: 0.2578516084 | F37: 0.2015441659 | G37: 0.1958087086 | H37: 0.1291642642 | I37: 4 | J37: 0.2578516084 | K37: 0.2578516084
A39: Arbeitszeit Landwirt
A40: Injektionsnarkose TA | B40: min/T(m) | C40: 0.6484851085 | D40: 0.8173977996 | E40: 1.379049215 | F40: 1.12574127 | G40: 0.4902523784 | H40: 0.5760557762 | I40: 1 | J40: =INDEX($C$40:$H$47,I40,$K$2) -> 1.379049215 | K40: =($K$8/60)*J40 -> 0.4596830718
A41: Injektionsnarkose TA | B41: min/T(m) | C41: 6.414270249 | D41: 4.346433024 | E41: 2.547338497 | F41: 2.613927463 | G41: 2.283423871 | H41: 1.632262288 | I41: 2 | J41: =INDEX($C$40:$H$47,I41,$K$2) -> 2.547338497 | K41: =($K$8/60)*J41 -> 0.8491128323
A42: IsofluranA TA | B42: min/T(m) | C42: 0.923906048 | D42: 1.239224419 | E42: 1.218135321 | F42: 0.8737885766 | G42: 0.6584273172 | H42: 0.7684711957 | I42: 3 | J42: 1.218135321 | K42: 0.406045107
A43: IsofluranA LW | B43: min/T(m) | C43: 1.709589284 | D43: 2.162157849 | E43: 2.617342118 | F43: 1.663382676 | G43: 1.173688283 | H43: 1.433079673 | I43: 4 | J43: 2.617342118 | K43: 0.8724473726
A44: IsofluranB TA | B44: min/T(m) | C44: 1.086461599 | D44: 1.402909186 | E44: 1.566997084 | F44: 1.328317718 | G44: 1.059347605 | H44: 1.003640493 | I44: 5 | J44: 1.566997084 | K44: 0.5223323612
A45: IsofluranB LW | B45: min/T(m) | C45: 2.202255244 | D45: 2.780265217 | E45: 2.55130719 | F45: 2.285709844 | G45: 1.935038524 | H45: 1.745624421 | I45: 6 | J45: 2.55130719 | K45: 0.8504357299
A46: Lokalanästhesie TA | B46: min/T(m) | C46: 0.4866082855 | D46: 0.7124986692 | E46: 1.070153494 | F46: 0.8183741829 | G46: 0.1877761105 | H46: 0.4863387234 | I46: 7 | J46: 1.070153494 | K46: 0.3567178313
A47: Lokalanästhesie LW | B47: min/T(m) | C47: 1.075154275 | D47: 1.258027283 | E47: 1.62549212 | F47: 1.236404616 | G47: 0.5176182575 | H47: 0.943410891 | I47: 8 | J47: 1.62549212 | K47: 0.5418307068

Sheet res (hidden)
A1: Mehrkosten | D1: je männliches Ferkel | E1: je Sau und Jahr | F1: pro Jahr
A2: Injektionsnarkose TA | B2: EUR | D2: =data!K22+data!K40 -> 7.010962735 | E2: =D2*data!$K$6*data!$K$5*0.5 -> 108.8451965 | F2: =E2*data!$K$3 -> 16326.77947
A3: Injektionsnarkose TA | B3: EUR | D3: =data!K23+data!K41 -> 3.677888266 | E3: =D3*data!$K$6*data!$K$5*0.5 -> 57.09921532 | F3: =E3*data!$K$3 -> 8564.882299
A4: IsofluranA TA | B4: EUR | D4: =data!K24+data!K42+data!K34 -> 3.655122278 | E4: =D4*data!$K$6*data!$K$5*0.5 -> 56.74577337 | F4: =E4*data!$K$3 -> 8511.866005
A5: IsofluranA LW | B5: EUR | D5: =data!K25+data!K43+data!K35 -> 1.44305633 | E5: =D5*data!$K$6*data!$K$5*0.5 -> 22.40344953 | F5: =E5*data!$K$3 -> 3360.517429
A6: IsofluranB TA | B6: EUR | D6: =data!K26+data!K44+data!K36 -> 3.555117413 | E6: =D6*data!$K$6*data!$K$5*0.5 -> 55.19319784 | F6: =E6*data!$K$3 -> 8278.979676
A7: IsofluranB LW | B7: EUR | D7: =data!K27+data!K45+data!K37 -> 1.827097605 | E7: =D7*data!$K$6*data!$K$5*0.5 -> 28.36569031 | F7: =E7*data!$K$3 -> 4254.853547
A8: Lokalanästhesie TA | B8: EUR | D8: =data!K28+data!K46 -> 1.959858877 | E8: =D8*data!$K$6*data!$K$5*0.5 -> 30.42680906 | F8: =E8*data!$K$3 -> 4564.02136
A9: Lokalanästhesie LW | B9: EUR | D9: =data!K29+data!K47 -> 0.7327784833 | E9: =D9*data!$K$6*data!$K$5*0.5 -> 11.37638595 | F9: =E9*data!$K$3 -> 1706.457893
A11: Zusätzliche Arbeitszeit Landwirt | D11: min / Wurf | E11: h / Jahr
A12: Injektionsnarkose TA | D12: =data!J40*data!$K$5*0.5 -> 9.308582203 | E12: =(D12*data!$K$6*data!$K$3)/60 -> 53.52434767
A13: Injektionsnarkose TA | D13: =data!J41*data!$K$5*0.5 -> 17.19453485 | E13: =(D13*data!$K$6*data!$K$3)/60 -> 98.86857541
A14: IsofluranA TA | D14: =data!J42*data!$K$5*0.5 -> 8.222413417 | E14: =(D14*data!$K$6*data!$K$3)/60 -> 47.27887715
A15: IsofluranA LW | D15: =data!J43*data!$K$5*0.5 -> 17.6670593 | E15: =(D15*data!$K$6*data!$K$3)/60 -> 101.5855909
A16: IsofluranB TA | D16: =data!J44*data!$K$5*0.5 -> 10.57723031 | E16: =(D16*data!$K$6*data!$K$3)/60 -> 60.8190743
A17: IsofluranB LW | D17: =data!J45*data!$K$5*0.5 -> 17.22132353 | E17: =(D17*data!$K$6*data!$K$3)/60 -> 99.0226103
A18: Lokalanästhesie TA | D18: =data!J46*data!$K$5*0.5 -> 7.223536084 | E18: =(D18*data!$K$6*data!$K$3)/60 -> 41.53533248
A19: Lokalanästhesie LW | D19: =data!J47*data!$K$5*0.5 -> 10.97207181 | E19: =(D19*data!$K$6*data!$K$3)/60 -> 63.08941292

Sheet data2 (hidden)
A1: Bayern | B1: 287 | C1: 70542.03 | D1: =C1/B1 -> 245.7910453 | E1: =SQRT(D1/PI()) -> 8.845208853 | G1: 4
A2: Niedersachsen | B2: 206 | C2: 47709.83 | D2: =C2/B2 -> 231.6011165 | E2: =SQRT(D2/PI()) -> 8.586089042
A3: Baden-Württemberg | B3: 192 | C3: 35673.71 | D3: 185.8005729 | E3: 7.690393957
A4: Nordrhein-Westfalen | B4: =67+98 -> 165 | C4: 34112.74 | D4: 206.7438788 | E4: 8.112251261
A5: Brandenburg | B5: 58 | C5: 29654.38 | D5: 511.2824138 | E5: 12.75720373
A6: Mecklenburg-Vorpommern | B6: 42 | C6: 23292.73 | D6: 554.5888095 | E6: 13.2865007
A7: Hessen | B7: 27 | C7: 21115.67 | D7: 782.0618519 | E7: 15.77776977
A8: Sachsen-Anhalt | B8: 30 | C8: 20452.14 | D8: 681.738 | E8: 14.73105377
A9: Rheinland-Pfalz | B9: 12 | C9: 19858 | D9: 1654.833333 | E9: 22.9510307
A10: Sachsen | B10: 33 | C10: 18449.99 | D10: 559.0906061 | E10: 13.34031736
A11: Thüringen | B11: 24 | C11: 16202.37 | D11: 675.09875 | E11: 14.65914753
A12: Schleswig-Holstein | B12: 44 | C12: 15802.27 | D12: 359.1425 | E12: 10.69198804
A13: Saarland | B13: 1 | C13: 2571.1 | D13: 2571.1 | E13: 28.60780572
A14: Berlin | B14: 1 | C14: 891.12 | D14: 891.12 | E14: 16.84198046
A15: Hamburg | B15: 3 | C15: 755.09 | D15: 251.6966667 | E15: 8.950840034
A16: Bremen | B16: 2 | C16: 419.84 | D16: 209.92 | E16: 8.174326352
A17: Quelle: | B17: Deutsches Tierärzteblatt | C17: Destatis
A19: 1-Wochenrhythmus | B19: 1 | G19: 1
A20: 2-Wochenrhythmus | B20: 2
A21: 3-Wochenrhythmus | B21: 3
A22: 4-Wochenrhythmus | B22: 4
A23: anderer Rhythmus | B23: 5
